bitfinex/quotes_ETHUSD_20240828
["timestamp","ask_amount","ask_price","bid_price","bid_amount"]
[1724834110764,2.3248,2468.3,2468.0,4.05177]
[1724834112354,2.3248,2468.3,2467.8,4.05203]
[1724834112559,2.3248,2468.3,2467.9,4.05199]
[1724834113150,2.3248,2468.3,2468.0,4.05184]
[1724834115040,2.3248,2468.3,2468.0,4.05178]
[1724834115450,2.3248,2468.3,2467.9,4.05202]
[1724834115637,2.2717,2468.2,2467.9,4.05202]
[1724834118242,2.2717,2468.2,2467.8,4.05205]
[1724834118758,2.2717,2468.2,2467.8,8.10413]
[1724834118966,2.2717,2468.2,2467.8,4.05205]
[1724834119839,2.4781,2468.1,2467.8,4.05205]
[1724834120035,4.05212,2467.9,2467.4,4.05275]
[1724834120249,2.4957,2467.6,2466.9,4.45998]
[1724834120456,4.05269,2467.5,2467.1,4.05333]
[1724834120672,7.44,2467.7,2466.9,4.05355]
[1724834120673,2.4957,2467.3,2466.9,4.05355]
[1724834121179,2.4957,2467.3,2467.1,4.05334]
[1724834126866,2.4957,2467.3,2467.2,4.05317]
[1724834127580,2.4957,2467.3,2467.1,4.05332]
[1724834128076,2.4957,2467.3,2467.1,8.10664]
[1724834128705,2.4957,2467.3,2467.2,4.05317]
[1724834129811,2.4957,2467.3,2467.2,8.10634]
[1724834130024,2.4957,2467.3,2467.2,16.79436578]
[1724834130316,2.4957,2467.3,2467.2,20.20076578]
[1724834131670,8.10197,2468.6,2468.0,4.05177]
[1724834131867,4.05097,2468.6,2468.0,4.05172]
[1724834132111,4.05133,2468.4,2467.9,4.05202]
[1724834132411,8.10264,2468.4,2467.9,4.05202]
[1724834132564,4.05132,2468.4,2468.0,0.10637601]
[1724834132808,8.10268,2468.4,2468.0,0.10637601]
[1724834133125,8.912918,2468.4,2468.0,0.10637601]
[1724834133744,4.861588,2468.4,2468.0,0.10637601]
[1724834133921,4.05132,2468.4,2468.0,0.10637601]
[1724834134718,2.3488,2468.3,2468.0,0.10637601]
[1724834135535,2.3502,2468.1,2467.7,4.05225]
[1724834136874,2.3502,2468.1,2467.8,4.05217]
[1724834138155,2.3502,2468.1,2467.7,4.05234]
[1724834139154,4.05189,2468.0,2467.5,4.05255]
[1724834139317,2.2899,2467.7,2467.3,4.053]
[1724834139519,2.2899,2467.7,2467.5,4.05268]
[1724834139824,2.2899,2467.7,2467.4,8.10547]
[1724834140277,2.2899,2467.7,2467.5,4.05266]
[1724834140776,2.2899,2467.7,2467.4,8.13757578]
[1724834140991,2.2899,2467.7,2467.2,4.05302]
[1724834141151,2.2899,2467.7,2467.0,3.4064]
[1724834141152,2.3575,2467.5,2467.0,4.0534]
[1724834141481,2.3575,2467.3,2467.0,4.0534]
[1724834142883,2.3575,2467.3,2466.6,4.05405]
[1724834142884,2.4147,2467.1,2466.6,4.05405]
[1724834143100,2.4147,2467.0,2466.6,4.05405]
[1724834143398,2.4147,2467.0,2466.4,4.46079]
[1724834143399,2.4147,2466.9,2466.4,4.46079]
[1724834143687,2.4147,2466.9,2466.5,4.05432]
[1724834144402,2.4423,2466.7,2466.4,0.4064]
[1724834144699,2.4423,2466.7,2466.2,8.10947]
[1724834144700,2.4423,2466.6,2466.1,4.05493]
[1724834145194,2.3357,2466.5,2466.2,4.05481]
[1724834145353,2.3357,2466.5,2466.4,8.10898]
[1724834145774,2.3357,2466.5,2466.4,8.20734648]
[1724834146058,2.3357,2466.5,2466.4,8.75734648]
[1724834146255,2.3357,2466.5,2466.4,11.75734648]
[1724834148115,2.3357,2466.5,2466.4,16.44664237]
[1724834148518,4.05225,2467.8,2466.4,16.44664237]
[1724834148519,2.372,2467.3,2466.7,0.4064]
[1724834148683,2.372,2467.3,2467.2,8.10634]
[1724834149108,2.372,2467.3,2467.2,8.75470648]
[1724834149701,2.372,2467.3,2467.2,0.09836648]
[1724834150114,2.372,2467.3,2467.0,4.05341]
[1724834150614,2.372,2467.3,2467.1,0.09909498]
[1724834151815,2.372,2467.3,2467.2,16.89414147]
[1724834151987,2.372,2467.3,2467.2,17.93511031]
[1724834152419,2.372,2467.3,2467.2,20.52871031]
[1724834152793,2.372,2467.3,2467.2,20.93511031]
[1724834153023,2.4276,2468.5,2467.9,4.05196]
[1724834153328,2.4276,2468.4,2467.9,4.0519]
[1724834153628,2.4276,2468.4,2468.0,0.09957264]
[1724834153788,2.4276,2468.4,2468.0,4.15143264]
[1724834154115,2.4276,2468.4,2468.0,0.09957264]
[1724834154430,1.1177493,2468.4,2468.0,0.09957264]
[1724834154628,2.336,2468.3,2468.0,0.09957264]
[1724834158325,4.05146,2468.3,2468.0,0.09957264]
[1724834158623,2.4927,2468.2,2467.7,4.05227]
[1724834158828,2.4927,2468.2,2468.1,0.09892783]
[1724834159028,2.4927,2468.2,2468.0,4.0518]
[1724834159210,2.4927,2468.2,2468.1,0.09892783]
[1724834159429,2.4927,2468.2,2468.1,8.20230783]
[1724834159593,2.4927,2468.2,2468.1,8.75230783]
[1724834160424,2.4927,2468.2,2468.1,4.70061783]
[1724834160789,2.4927,2468.2,2468.1,8.75230783]
[1724834161214,2.4927,2468.2,2468.1,11.75230783]
[1724834161616,2.4927,2468.2,2468.1,12.15870783]
[1724834162487,2.4927,2468.2,2468.1,4.70061783]
[1724834164648,2.4927,2468.2,2468.1,9.23973597]
[1724834164851,2.4927,2468.2,2468.1,12.15870783]
[1724834165417,2.4927,2468.2,2468.1,4.70061783]
[1724834165816,2.4927,2468.2,2468.1,8.75230783]
[1724834169631,2.4927,2468.2,2468.1,0.09892783]
[1724834169965,2.74197,2468.2,2467.9,4.05202]
[1724834170167,2.74197,2468.2,2467.9,8.10383]
[1724834170399,2.74197,2468.2,2468.0,0.0975308]
[1724834170601,2.4927,2468.2,2468.0,4.1493708]
[1724834170775,2.4927,2468.2,2468.1,4.05169]
[1724834171203,2.4927,2468.2,2468.1,4.1492208]
[1724834171507,2.4927,2468.2,2468.1,8.2009108]
[1724834172401,2.4927,2468.2,2468.1,12.2526008]
[1724834172708,2.4927,2468.2,2468.1,15.8026008]
[1724834174120,2.4927,2468.2,2468.1,19.8342908]
[1724834174270,2.4927,2468.2,2468.1,20.2406908]
[1724834174704,1.64677995,2468.2,2468.1,20.2406908]
[1724834175084,7.44,2469.2,2469.0,4.05007]
[1724834175411,19.78,2469.4,2469.1,4.04994]
[1724834175719,7.44,2469.6,2469.2,4.14757793]
[1724834175863,27.22,2469.9,2469.4,4.04947]
[1724834176067,11.45493556,2469.9,2469.6,4.04909]
[1724834176493,11.45493556,2469.9,2469.7,0.09769793]
[1724834176864,11.45493556,2469.9,2469.5,4.04936]
[1724834177069,11.45493556,2469.9,2469.8,0.09769793]
[1724834177302,11.45493556,2469.9,2469.5,4.04936]
[1724834177519,11.45493556,2469.9,2469.8,0.09769793]
[1724834177815,13.87383556,2469.9,2469.8,0.09769793]
[1724834178054,2.2801,2469.8,2469.5,4.04936]
[1724834178241,2.2801,2469.7,2469.4,4.04954]
[1724834178552,2.2801,2469.7,2469.6,0.09769793]
[1724834178715,2.2801,2469.7,2469.5,4.04937]
[1724834178916,2.2801,2469.7,2469.6,4.14692793]
[1724834180743,2.2801,2469.7,2469.6,8.19615793]
[1724834181541,2.2801,2469.7,2469.6,12.28101371]
[1724834181743,2.2801,2469.7,2469.6,12.83101371]
[1724834182041,2.2801,2469.7,2469.6,11.74615793]
[1724834183370,2.2801,2469.7,2469.6,15.83101371]
[1724834183671,2.3949,2470.7,2470.5,4.04775]
[1724834183855,2.3949,2470.7,2470.3,4.04795]
[1724834184056,2.4666,2470.3,2469.9,4.04864]
[1724834184353,2.4666,2470.3,2469.8,4.04889]
[1724834184354,2.4666,2470.1,2469.8,4.04889]
[1724834184673,2.4666,2470.0,2469.7,8.09795]
[1724834185029,2.4666,2470.0,2469.8,4.04888]
[1724834185362,2.4666,2470.0,2469.9,4.04874]
[1724834185563,2.4666,2470.0,2469.8,8.09767]
[1724834185766,2.4666,2470.0,2469.9,4.04874]
[1724834186755,2.4666,2470.0,2469.9,8.09748]
[1724834186959,2.4666,2470.0,2469.9,8.64748]
[1724834187280,2.4666,2470.0,2469.9,15.69622]
[1724834187931,2.4666,2470.0,2469.9,11.09748]
[1724834189383,2.4666,2470.0,2469.9,11.64748]
[1724834189831,2.4666,2470.0,2469.9,4.04874]
[1724834190030,2.4666,2470.0,2469.7,4.04896]
[1724834190031,2.71326,2470.0,2469.7,4.04896]
[1724834190475,2.71326,2470.0,2469.8,4.0489]
[1724834190968,2.71326,2470.0,2469.9,0.07659593]
[1724834191376,2.4666,2470.0,2469.9,4.12533593]
[1724834191674,2.4666,2470.0,2469.9,8.72407593]
[1724834191841,2.4666,2470.0,2469.9,4.67533593]
[1724834192041,2.4666,2470.0,2469.9,0.07659593]
[1724834192243,2.71326,2470.0,2469.9,0.07659593]
[1724834192466,2.4666,2470.0,2469.9,4.04874]
[1724834192678,2.4666,2470.0,2469.9,4.12560861]
[1724834193023,2.4666,2470.0,2469.9,0.07686861]
[1724834193182,2.4666,2470.0,2469.6,4.0491]
[1724834193382,2.71326,2470.0,2469.7,4.12584861]
[1724834194008,2.71326,2470.0,2469.8,8.09768]
[1724834194205,2.4666,2470.0,2469.9,8.17433675]
[1724834196781,2.4666,2470.0,2469.9,8.72433675]
[1724834197019,2.4666,2470.0,2469.9,11.72433675]
[1724834197526,0.96365621,2470.0,2469.9,11.72433675]
[1724834197821,0.96365621,2470.0,2469.9,12.13073675]
[1724834201771,0.96365621,2470.0,2469.9,16.17947675]
[1724834202051,7.44,2470.8,2469.9,16.17947675]
[1724834202052,2.3551,2470.7,2470.6,4.04755]
[1724834202212,2.3551,2470.7,2470.6,3.87985]
[1724834202408,2.3551,2470.7,2470.6,3.95620886]
[1724834202906,2.3551,2470.7,2470.6,3.89900886]
[1724834203648,2.8738101,2470.7,2470.6,0.07635886]
[1724834204013,2.8738101,2470.7,2470.5,4.04776]
[1724834204322,2.3551,2470.7,2470.6,0.07609811]
[1724834205853,2.3551,2470.7,2470.5,4.04774]
[1724834206053,2.3551,2470.7,2470.6,4.12368811]
[1724834206641,2.3551,2470.7,2470.6,0.07609811]
[1724834207928,4.68561,2470.7,2470.6,0.07609811]
[1724834208186,8.73304,2470.7,2470.6,0.07609811]
[1724834208405,6.51953,2470.7,2470.6,0.07609811]
[1724834208572,2.4721,2470.6,2470.3,4.04798]
[1724834209475,2.4755,2470.4,2470.0,0.4064]
[1724834209676,2.4755,2470.4,2470.0,4.45496]
[1724834209872,2.4755,2470.4,2470.1,4.04837]
[1724834210171,2.4755,2470.2,2469.8,8.09763]
[1724834210375,2.4755,2470.2,2469.9,4.04871]
[1724834210605,2.4755,2470.2,2470.0,4.04854]
[1724834210825,2.4755,2470.2,2470.1,8.09682]
[1724834212413,2.4755,2470.2,2470.1,8.73070237]
[1724834213814,2.4755,2470.2,2470.1,0.63388237]
[1724834213988,2.4755,2470.2,2470.1,4.04841]
[1724834214189,2.4755,2470.2,2470.1,8.09682]
[1724834214391,2.4755,2470.2,2470.1,8.73072751]
[1724834220113,2.4755,2470.2,2470.1,4.04841]
[1724834220827,2.4755,2470.2,2470.1,4.12193627]
[1724834221393,2.4755,2470.2,2470.1,8.80425405]
[1724834222494,2.4755,2470.2,2470.1,12.88910983]
[1724834223126,2.4755,2470.2,2470.1,12.25520205]
[1724834223328,2.4755,2470.2,2470.1,12.88906354]
[1724834224534,2.4755,2470.2,2470.1,12.25520205]
[1724834224834,2.4755,2470.2,2470.1,8.80419586]
[1724834225145,2.4755,2470.2,2470.1,16.93746164]
[1724834225324,1.63025652,2470.2,2470.1,23.98587164]
[1724834225519,1.63025652,2470.2,2470.1,21.34614095]
[1724834225893,1.63025652,2470.2,2470.1,21.34616593]
[1724834227748,1.63025652,2470.2,2470.1,19.93746164]
[1724834228350,1.63025652,2470.2,2470.1,21.34616248]
[1724834228520,1.63025652,2470.2,2470.1,25.39457113]
[1724834228727,7.44,2471.3,2471.2,4.04661]
[1724834228908,1.0,2471.6,2471.3,4.04641]
[1724834229220,2.4634,2471.5,2471.3,4.04641]
[1724834229421,2.4634,2471.5,2471.4,0.07340774]
[1724834229959,2.4634,2471.5,2471.3,4.04645]
[1724834230318,2.4634,2471.5,2471.4,8.16596774]
[1724834230859,6.85586,2471.5,2471.4,0.07340774]
[1724834231153,2.3997,2471.4,2470.6,0.4064]
[1724834231311,2.774304,2471.4,2471.1,4.0467]
[1724834231512,2.3997,2471.4,2470.9,4.04709]
[1724834231735,2.3997,2471.4,2471.3,8.0929]
[1724834232057,2.3997,2471.4,2471.3,4.04645]
[1724834232349,2.3997,2471.4,2471.3,4.11904018]
[1724834233310,3.58367,2471.4,2471.3,0.07259018]
[1724834233510,2.3479,2471.3,2470.9,4.04708]
[1724834233710,2.3479,2471.3,2471.0,4.04694]
[1724834233953,2.3479,2471.3,2470.9,4.0471]
[1724834234134,2.3479,2471.3,2471.0,4.04691]
[1724834234525,2.3479,2471.3,2471.1,4.04675]
[1724834235873,2.3479,2471.3,2471.2,0.0717607]
[1724834236086,2.3217,2471.2,2470.7,4.4537]
[1724834236392,2.3217,2471.2,2470.7,0.4064]
[1724834236671,1.0,2471.5,2470.6,3.0]
[1724834236672,2.4231,2471.0,2470.6,3.0]
[1724834237030,2.4231,2471.0,2470.7,4.0474]
[1724834237286,2.4231,2471.0,2470.7,8.09475]
[1724834237431,2.4231,2471.0,2470.8,4.04725]
[1724834237771,2.4231,2471.0,2470.8,4.04719]
[1724834237925,2.4231,2471.0,2470.8,8.09437]
[1724834238126,2.4231,2471.0,2470.8,4.04718]
[1724834239163,2.4231,2471.0,2470.7,4.04741]
[1724834239378,2.4231,2471.0,2470.8,4.04724]
[1724834239536,2.4231,2471.0,2470.9,8.0942]
[1724834240143,2.4231,2471.0,2470.9,4.0471]
[1724834241241,2.4231,2471.0,2470.9,8.0942]
[1724834242590,2.4231,2471.0,2470.6,4.04745]
[1724834242755,2.66541,2471.0,2470.6,4.04745]
[1724834243103,2.66541,2471.0,2470.6,8.09497]
[1724834243382,2.66541,2471.0,2470.6,8.09495]
[1724834243544,2.66541,2471.0,2470.6,4.04745]
[1724834243985,2.66541,2471.0,2470.6,8.09497]
[1724834244147,2.4231,2471.0,2470.7,4.04739]
[1724834244343,2.4231,2471.0,2470.8,4.04727]
[1724834244585,2.4231,2471.0,2470.6,8.09489]
[1724834244788,2.4231,2471.0,2470.6,4.04744]
[1724834244959,2.4231,2471.0,2470.6,8.09495]
[1724834245156,2.4231,2471.0,2470.6,4.04744]
[1724834245469,2.4231,2471.0,2470.7,4.04734]
[1724834245708,2.4231,2471.0,2470.4,4.45421]
[1724834245998,4.04712,2470.9,2470.5,3.0]
[1724834246201,2.2801,2470.8,2470.5,3.0]
[1724834246898,2.2801,2470.8,2470.5,7.04774]
[1724834247078,2.2801,2470.8,2470.6,4.04757]
[1724834247401,2.2801,2470.8,2470.6,8.09508]
[1724834247693,2.2801,2470.8,2470.6,4.04751]
[1724834248057,2.2801,2470.8,2470.5,3.0]
[1724834248298,2.2801,2470.8,2470.5,7.04775]
[1724834249199,2.2801,2470.8,2470.5,3.0]
[1724834249418,2.2801,2470.8,2470.4,4.45417]
[1724834249768,2.2539,2470.7,2470.4,4.45417]
[1724834250111,2.2539,2470.7,2470.4,4.04791]
[1724834250681,2.2539,2470.7,2470.5,0.06769983]
[1724834252789,2.3609,2470.6,2470.5,0.06769983]
[1724834252972,11.501659,2470.6,2470.5,0.06769983]
[1724834253375,11.501659,2470.6,2469.6,0.4064]
[1724834253376,2.295,2470.2,2469.7,4.04895]
[1724834253611,2.295,2470.0,2469.6,4.04912]
[1724834253815,2.295,2469.9,2469.4,4.04941]
[1724834254017,4.04921,2469.7,2469.2,4.04982]
[1724834254223,2.3845,2469.6,2469.2,4.04982]
[1724834254622,2.3845,2469.6,2469.2,4.0498]
[1724834255820,2.3845,2469.6,2469.2,8.09961]
[1724834255972,2.3845,2469.6,2469.2,4.0498]
[1724834256173,3.027852,2469.6,2469.0,4.05016]
[1724834256418,2.4014,2469.5,2469.0,4.05019]
[1724834256648,2.4014,2469.4,2469.0,4.05019]
[1724834257287,2.4014,2469.4,2469.0,8.10031]
[1724834257635,2.4014,2469.4,2469.0,4.05012]
[1724834259316,2.4014,2469.4,2469.3,4.04973]
[1724834260532,2.4014,2469.4,2469.2,4.04987]
[1724834261298,2.4014,2469.4,2469.2,8.09966]
[1724834261612,2.4014,2469.4,2469.2,4.04979]
[1724834261920,2.4014,2469.4,2469.2,8.09958]
[1724834262129,2.4014,2469.4,2469.3,4.04973]
[1724834262625,2.4014,2469.4,2469.3,8.09946]
[1724834263790,2.4014,2469.4,2469.2,4.04977]
[1724834264133,2.4014,2469.4,2469.2,4.04978]
[1724834264825,2.4014,2469.4,2469.1,4.04992]
[1724834264826,2.4014,2469.4,2469.3,4.04973]
[1724834265251,2.4014,2469.4,2469.3,8.09946]
[1724834265831,2.4014,2469.4,2469.3,8.15977488]
[1724834267578,2.2609,2470.4,2470.1,4.04839]
[1724834267732,2.2609,2470.4,2470.0,4.04853]
[1724834268235,2.2609,2470.4,2470.3,4.04809]
[1724834268437,2.2609,2470.4,2470.3,8.09618]
[1724834268876,2.2609,2470.4,2470.3,8.15649488]
[1724834271342,10.61976578,2470.4,2470.3,0.06031488]
[1724834271663,2.354,2470.1,2469.8,4.04882]
[1724834272081,2.354,2470.1,2469.9,0.05361072]
[1724834273387,2.354,2470.1,2469.6,8.09822]
[1724834273686,6.40241,2470.1,2470.0,0.05361072]
[1724834273889,2.295,2469.9,2469.5,8.50506]
[1724834274093,2.295,2469.7,2469.5,8.50501]
[1724834274667,2.295,2469.7,2469.6,4.04923]
[1724834275152,2.295,2469.7,2469.5,8.50497]
[1724834275355,2.295,2469.7,2469.6,4.04923]
[1724834276602,2.295,2469.7,2469.5,4.04927]
[1724834276797,2.295,2469.7,2469.3,4.04957]
[1724834276798,2.5245,2469.7,2469.3,4.04957]
[1724834277402,2.3569,2469.5,2469.1,4.45636]
[1724834277578,2.3569,2469.5,2469.1,8.50634]
[1724834277899,0.23569,2469.4,2469.1,4.45636]
[1724834278206,2.3569,2469.3,2469.1,4.45636]
[1724834278965,2.3569,2469.3,2469.1,8.50633]
[1724834279167,2.3569,2469.3,2469.1,4.45636]
[1724834279574,2.3569,2469.3,2469.2,4.04989]
[1724834279770,2.3569,2469.3,2469.2,8.09978]
[1724834280897,2.3569,2469.3,2469.2,12.20445087]
[1724834281079,2.3569,2469.3,2469.2,8.56096087]
[1724834282883,2.3569,2469.3,2469.2,12.61085087]
[1724834283260,2.3569,2469.3,2469.2,8.56096087]
[1724834283261,1.51132061,2469.3,2469.2,8.56096087]
[1724834283588,1.51132061,2469.3,2469.2,12.61085087]
[1724834283788,1.51132061,2469.3,2469.2,8.56096087]
[1724834284104,1.51132061,2469.3,2469.2,12.61085087]
[1724834284815,1.51132061,2469.3,2469.2,8.56096087]
[1724834284977,1.51132061,2469.3,2469.2,12.61085087]
[1724834285173,7.44,2470.0,2469.8,4.04888]
[1724834285394,7.44,2470.4,2469.8,8.09769]
[1724834285679,7.44,2470.4,2469.9,4.10454034]
[1724834285680,11.48795,2470.4,2469.9,4.10454034]
[1724834285876,4.04843,2470.1,2469.9,0.05588034]
[1724834286408,2.2976,2470.0,2469.7,4.04897]
[1724834286608,2.2976,2470.0,2469.8,4.04879]
[1724834286815,2.2976,2470.0,2469.9,4.04874]
[1724834288181,2.2976,2470.0,2469.9,8.09748]
[1724834288378,2.2976,2470.0,2469.9,4.04874]
[1724834288979,2.2976,2470.0,2469.9,8.09748]
[1724834289418,2.2976,2470.0,2469.9,4.04874]
[1724834289587,2.2976,2470.0,2469.9,8.09748]
[1724834290221,2.2976,2470.0,2469.9,4.04874]
[1724834290627,2.2976,2470.0,2469.8,4.04881]
[1724834290826,2.2976,2470.0,2469.8,8.09763]
[1724834291917,2.2976,2470.0,2469.9,4.04874]
[1724834292123,2.2976,2470.0,2469.8,4.04881]
[1724834292605,2.2976,2470.0,2469.8,8.09763]
[1724834292806,2.2976,2470.0,2469.9,4.10400548]
[1724834293006,2.2976,2470.0,2469.9,0.05526548]
[1724834293320,2.2976,2470.0,2469.8,4.04888]
[1724834293619,2.2976,2470.0,2469.9,0.05526548]
[1724834294000,2.2976,2470.0,2469.7,8.09791]
[1724834294322,2.2976,2470.0,2469.9,0.05526548]
[1724834294622,2.2976,2470.0,2469.9,4.10400548]
[1724834294787,2.2976,2470.0,2469.9,0.05526548]
[1724834295736,2.2976,2470.0,2469.5,4.04927]
[1724834295895,2.2976,2470.0,2469.7,4.04905]
[1724834296082,2.2976,2470.0,2469.8,4.04882]
[1724834296485,2.2976,2470.0,2469.9,0.05526548]
[1724834297298,10.62452,2470.0,2469.9,0.05526548]
[1724834297487,2.3715,2469.8,2469.1,3.0]
[1724834297688,2.3715,2469.8,2469.6,4.04913]
[1724834297906,2.3715,2469.8,2469.7,4.04907]
[1724834298432,2.3715,2469.8,2469.7,4.10422908]
[1724834299325,2.3715,2469.8,2469.7,0.05515908]
[1724834300902,2.438,2469.7,2469.2,4.04976]
[1724834301297,4.04916,2469.7,2469.3,4.0497]
[1724834301490,2.2794,2469.6,2469.3,4.0497]
[1724834301823,2.2794,2469.6,2469.4,4.04953]
[1724834302054,2.2794,2469.6,2469.5,4.0494]
[1724834302254,2.2794,2469.6,2469.5,8.0988]
[1724834305013,2.2794,2469.6,2469.5,4.0494]
[1724834305455,2.2794,2469.6,2469.5,8.0988]
[1724834305813,2.2794,2469.6,2469.5,4.0494]
[1724834306427,2.2794,2469.6,2469.5,8.0988]
[1724834310867,2.2794,2469.6,2469.5,8.15415239]
[1724834312048,2.4655,2469.9,2469.8,8.09782]
[1724834312838,2.4655,2469.9,2469.8,8.15339703]
[1724834313342,4.04762,2470.6,2469.8,0.05557703]
[1724834313548,3.0,2470.5,2470.4,4.04792]
[1724834314075,2.4497,2470.5,2470.4,4.10334333]
[1724834314245,2.69467,2470.5,2470.4,0.05542333]
[1724834314451,2.4497,2470.4,2470.0,4.04847]
[1724834314689,2.4497,2470.4,2470.0,8.09694]
[1724834314836,2.4497,2470.4,2470.0,4.04847]
[1724834315146,2.4497,2470.4,2470.1,4.0483]
[1724834315534,2.4497,2470.4,2470.3,4.04809]
[1724834316832,2.4497,2470.4,2470.3,8.09618]
[1724834317041,2.2803,2471.1,2470.5,4.04764]
[1724834317247,2.2803,2471.1,2470.6,0.08093701]
[1724834317552,2.2803,2471.1,2471.0,4.04694]
[1724834317762,2.2803,2471.1,2470.9,4.04708]
[1724834317954,2.2803,2471.1,2470.9,8.09409]
[1724834318166,2.2803,2471.1,2470.9,8.09398]
[1724834318371,2.2803,2471.1,2470.9,4.04697]
[1724834318578,2.50833,2471.1,2470.7,4.04728]
[1724834318785,2.50833,2471.1,2470.5,4.04765]
[1724834318786,2.4709,2470.9,2470.5,4.04765]
[1724834319089,2.4709,2470.7,2470.6,4.04759]
[1724834320874,2.4709,2470.7,2470.5,4.04765]
[1724834321082,2.4709,2470.7,2470.3,4.04797]
[1724834321083,2.4709,2470.7,2470.3,4.04793]
[1724834321278,2.4709,2470.7,2470.5,4.04763]
[1724834321786,2.4709,2470.7,2469.9,3.4064]
[1724834321787,2.4709,2470.7,2470.4,4.04791]
[1724834322188,2.4709,2470.7,2470.0,4.04844]
[1724834322189,4.04763,2470.6,2470.0,4.04844]
[1724834322388,2.3323,2470.5,2470.2,4.04811]
[1724834322594,2.3323,2470.5,2470.1,4.04841]
[1724834322797,2.3323,2470.5,2470.1,8.09674]
[1724834323582,2.3323,2470.5,2470.2,4.04822]
[1724834323957,2.3323,2470.5,2470.4,4.04792]
[1724834324891,2.3323,2470.5,2470.4,8.17679416]
[1724834325356,2.3323,2470.5,2470.4,8.09584]
[1724834325759,2.3323,2470.5,2470.4,8.14982126]
[1724834326357,2.3323,2470.5,2470.4,4.10190126]
[1724834328339,2.3323,2470.5,2470.4,0.05398126]
[1724834330464,2.56553,2470.5,2470.4,0.05398126]
[1724834330665,4.04801,2470.4,2469.9,4.04865]
[1724834330860,2.2668,2470.3,2469.9,8.0973]
[1724834331085,2.2668,2470.3,2470.0,0.05346123]
[1724834331281,2.2668,2470.3,2470.0,4.10203123]
[1724834331495,2.2668,2470.3,2470.1,4.0484]
[1724834331904,2.2668,2470.3,2470.2,0.05402846]
[1724834332083,0.654783,2470.3,2470.2,0.05402846]
[1724834332281,2.3726,2470.2,2469.9,4.04862]
[1724834333422,2.3726,2470.2,2469.9,8.09728]
[1724834333586,2.3726,2470.2,2469.9,4.04862]
[1724834333980,2.3726,2470.2,2469.7,4.04895]
[1724834333981,2.3726,2470.2,2469.8,4.0489]
[1724834334598,2.3726,2470.2,2469.9,4.04873]
[1724834334974,2.3726,2470.2,2469.7,8.0979]
[1724834335174,2.3726,2470.2,2469.7,8.09791]
[1724834335407,2.4398,2470.1,2469.7,4.04894]
[1724834336010,2.4398,2470.1,2469.7,8.09793]
[1724834336219,2.4398,2470.1,2469.7,4.04894]
[1724834337515,2.4398,2470.1,2469.7,4.04893]
[1724834337687,2.4398,2470.1,2469.9,4.04873]
[1724834338116,2.4398,2470.1,2470.0,4.04858]
[1724834338815,2.4398,2470.1,2470.0,8.09716]
[1724834340310,2.4398,2470.1,2470.0,16.86451499]
[1724834340740,2.4398,2470.1,2470.0,16.91814945]
[1724834341122,2.4398,2470.1,2470.0,17.46814945]
[1724834341415,2.454,2470.7,2470.5,4.04772]
[1724834341712,2.454,2470.6,2470.4,4.04792]
[1724834342050,2.454,2470.6,2470.5,0.05363446]
[1724834342946,2.454,2470.6,2470.5,4.10139446]
[1724834345139,2.454,2470.6,2470.5,8.14915446]
[1724834346226,2.454,2470.6,2470.5,8.78297223]
[1724834346820,2.454,2470.6,2470.5,12.83073223]
[1724834347260,2.454,2470.6,2470.5,8.78297223]
[1724834351963,2.454,2470.6,2470.5,8.14915446]
[1724834352331,2.454,2470.6,2470.5,8.78296498]
[1724834354573,2.454,2470.6,2470.5,12.83072498]
[1724834354930,2.454,2470.6,2470.5,8.78296498]
[1724834356536,2.454,2470.6,2470.5,0.05363446]
[1724834356537,6.74699,2470.6,2470.5,0.05363446]
[1724834356981,6.74699,2470.6,2469.8,4.04877]
[1724834356982,2.4677,2470.4,2469.8,4.04877]
[1724834357273,2.4677,2470.1,2469.9,0.05100431]
[1724834357458,2.4677,2470.1,2469.6,8.0983]
[1724834357643,2.4677,2470.1,2470.0,0.05100431]
[1724834357848,2.2972,2470.0,2469.6,4.04913]
[1724834359885,2.2972,2470.0,2469.8,4.0488]
[1724834360743,2.2972,2470.0,2469.9,4.04874]
[1724834361281,2.2972,2470.0,2469.9,8.09748]
[1724834362643,2.2972,2470.0,2469.9,12.81627193]
[1724834362972,2.2972,2470.0,2469.9,8.09748]
[1724834363276,2.2972,2470.0,2469.9,8.73141408]
[1724834364692,2.2972,2470.0,2469.9,4.04874]
[1724834365176,2.2972,2470.0,2469.9,8.09748]
[1724834365553,2.2972,2470.0,2469.9,4.04874]
[1724834367080,2.2972,2470.0,2469.8,8.09754]
[1724834367281,2.2972,2470.0,2469.9,4.04874]
[1724834367593,2.2972,2470.0,2469.9,8.09748]
[1724834370085,2.2972,2470.0,2469.9,4.04874]
[1724834370602,2.2972,2470.0,2469.8,4.04889]
[1724834370753,2.2972,2470.0,2469.9,0.05213909]
[1724834370957,2.931745,2470.0,2469.9,0.05213909]
[1724834371157,2.2729,2469.9,2469.5,4.04928]
[1724834371871,2.2729,2469.9,2469.5,8.09859]
[1724834372053,2.2729,2469.9,2469.6,4.04921]
[1724834373280,2.4567,2469.8,2469.6,4.04921]
[1724834374627,2.4567,2469.8,2469.4,8.09902]
[1724834375337,2.3264,2469.7,2469.3,4.04971]
[1724834376021,2.3264,2469.7,2469.4,4.04948]
[1724834376220,2.3264,2469.7,2469.6,4.04923]
[1724834377098,2.3264,2469.7,2469.5,4.0493]
[1724834377099,2.3264,2469.7,2469.4,4.04952]
[1724834377998,2.3264,2469.7,2469.5,4.04936]
[1724834378922,2.3264,2469.7,2469.6,4.04923]
[1724834379296,2.3264,2469.7,2469.5,4.04939]